[Event "FIDE WYCC Girls U18 2023"]
[Site "Montesilvano"]
[Date "2023.11.22"]
[Round "9.34"]
[White "Galli, Maria Vittoria"]
[Black "Zubova, Darja"]
[Result "0-1"]
[ECO "B12"]
[WhiteElo "1452"]
[BlackElo "1582"]
[Annotator "NA RC"]
[PlyCount "70"]
[EventDate "2023.11.13"]
[EventType "swiss"]
[EventCountry "ITA"]
[SourceTitle "playchess.com"]
[Source "ChessBase"]
[SourceQuality "1"]
[TimeControl "40/5400+30:1800+30"]

1. e4 {[%emt 0:00:03]} c6 {[%emt 0:00:06]} 2. d4 {[%emt 0:00:07]} d5 {[%emt 0:00:08]} 3. e5 {[%emt 0:00:12]} Bf5 {[%emt 0:00:09]} 4. Nf3 {[%emt 0:00:18]} e6 {[%emt 0:00:15]} 5. Be2 {[%emt 0:01:02]} c5 {[%emt 0:00:43]} 6. c3 {[%emt 0:01:21]} Nc6 {[%emt 0:00:42]} 7. Nbd2 {[%emt 0:05:21]} Qb6 {[%emt 0:04:31]} 8. Nb3 {[%emt 0:01:18]} cxd4 {[%emt 0:02:22]} 9. cxd4 {[%emt 0:04:06]} Bb4+ {[%emt 0:08:35]} 10. Bd2 {[%emt 0:00:49]} Nge7 {[%emt 0:01:39]} 11. O-O {[%emt 0:03:30]} Bxd2 {[%emt 0:00:57]} 12. Qxd2 {[%emt 0:00:12]} O-O {[%emt 0:01:31]} 13. Nc5 {[%emt 0:03:26]} Rfd8 {[%emt 0:02:07]} 14. Rac1 {[%emt 0:05:32]} h6 {[%emt 0:08:25]} 15. b3 {[%emt 0:16:40]} Bg4 {[%emt 0:07:46]} 16. h3 {[%emt 0:04:26]} Bxf3 {[%emt 0:04:34]} 17. Bxf3 {[%emt 0:00:19]} Nf5 {[%emt 0:00:19]} 18. Bg4 {[%emt 0:00:38]} Ncxd4 {[%emt 0:03:49]} 19. Na4 {[%emt 0:04:36]} Qb5 {[%emt 0:00:56]} 20. Bxf5 {[%emt 0:09:00]} Nxf5 {[%emt 0:00:25]} 21. Rc7 {[%emt 0:00:32]} b6 {[%emt 0:07:11]} 22. Rfc1 {[%emt 0:03:03]} d4 {[%emt 0:01:22]} 23. g4 {[%emt 0:05:41]} Nh4 {[%emt 0:01:30]} 24. Qf4 {[%emt 0:00:19]} Rf8 {[%emt 0:03:55]} 25. Kh1 {[%emt 0:01:12]} Qd5+ {[%emt 0:00:50]} 26. f3 {[%emt 0:03:18]} Nxf3 {[%emt 0:00:23]} 27. R7c2 {[%emt 0:01:50]} Nxe5+ {[%emt 0:01:12]} 28. Kh2 {[%emt 0:00:34]} Nd3 {[%emt 0:00:29]} 29. Qd2 {[%emt 0:05:31]} Nxc1 {[%emt 0:01:29]} 30. Rxc1 {[%emt 0:00:06]} Qe5+ {[%emt 0:00:58]} 31. Kg2 {[%emt 0:00:37]} Qe4+ {[%emt 0:01:12]} 32. Kh2 {[%emt 0:00:27]} Rac8 {[%emt 0:00:36]} 33. Re1 {[%emt 0:01:53]} Rc2 {[%emt 0:00:37]} 34. Rxe4 {[%emt 0:00:07]} Rxd2+ {[%emt 0:00:09]} 35. Kg3 {[%emt 0:00:09]} Rd8 {[%emt 0:00:20]} 0-1

[Event "FIDE WYCC Girls U18 2023"]
[Site "Montesilvano"]
[Date "2023.11.22"]
[Round "9.35"]
[White "Monteiro, Helen Ramazzotte"]
[Black "Gavrileva, Anna"]
[Result "0-1"]
[ECO "A13"]
[WhiteElo "1447"]
[BlackElo "1316"]
[Annotator "NA RC"]
[PlyCount "74"]
[EventDate "2023.11.13"]
[EventType "swiss"]
[EventCountry "ITA"]
[SourceTitle "playchess.com"]
[Source "ChessBase"]
[SourceQuality "1"]
[TimeControl "40/5400+30:1800+30"]

1. c4 {[%emt 0:00:39]} e6 {[%emt 0:00:05]} 2. Nc3 {[%emt 0:01:01]} d5 {[%emt 0:01:26]} 3. Nf3 {[%emt 0:04:10]} Nf6 {[%emt 0:00:52]} 4. g3 {[%emt 0:02:58]} Be7 {[%emt 0:01:36]} 5. Bg2 {[%emt 0:00:14]} O-O {[%emt 0:00:43]} 6. b3 {[%emt 0:00:32]} d4 {[%emt 0:00:39]} 7. Nb5 {[%emt 0:01:26]} c5 {[%emt 0:00:40]} 8. d3 {[%emt 0:00:52]} a6 {[%emt 0:01:03]} 9. Na3 {[%emt 0:00:14]} Nc6 {[%emt 0:01:02]} 10. O-O {[%emt 0:00:39]} e5 {[%emt 0:02:36]} 11. Nc2 {[%emt 0:03:48]} Re8 {[%emt 0:12:34]} 12. a3 {[%emt 0:01:49]} a5 {[%emt 0:01:04]} 13. Rb1 {[%emt 0:01:00]} h6 {[%emt 0:05:34]} 14. Bd2 {[%emt 0:01:49]} Bd6 {[%emt 0:22:04]} 15. b4 {[%emt 0:04:37]} axb4 {[%emt 0:00:12]} 16. axb4 {[%emt 0:00:10]} e4 {[%emt 0:03:22]} 17. Nfe1 {[%emt 0:14:40]} b6 {[%emt 0:10:00]} 18. bxc5 {[%emt 0:11:24]} bxc5 {[%emt 0:01:14]} 19. Qc1 {[%emt 0:08:56]} Bf5 {[%emt 0:06:55]} 20. Na3 {[%emt 0:07:56]} Rc8 {[%emt 0:01:23]} 21. Bf4 {[%emt 0:02:16]} exd3 {[%emt 0:07:40]} 22. exd3 {[%emt 0:01:12]} Nb4 {[%emt 0:00:28]} 23. Bxd6 {[%emt 0:12:38]} Qxd6 {[%emt 0:00:23]} 24. Qd1 {[%emt 0:00:18]} Nd7 {[%emt 0:04:58]} 25. Nac2 {[%emt 0:01:03]} Na2 {[%emt 0:01:13]} 26. Ra1 {[%emt 0:04:31]} Nc3 {[%emt 0:00:27]} 27. Qf3 {[%emt 0:00:16]} Qg6 {[%emt 0:02:13]} 28. h3 {[%emt 0:03:15]} Ne5 {[%emt 0:00:43]} 29. Qb7 {[%emt 0:03:59]} Nxd3 {[%emt 0:07:46]} 30. Nf3 Ne5 31. Nh4 {[%emt 0:03:08]} Qf6 {[%emt 0:01:31]} 32. Nxf5 {[%emt 0:00:48]} Qxf5 33. Ne1 Nxc4 {[%emt 0:01:48]} 34. g4 {[%emt 0:03:17]} Qg6 {[%emt 0:00:46]} 35. Kh1 {[%emt 0:01:22]} Nd2 {[%emt 0:00:38]} 36. Rg1 {[%emt 0:00:15]} Rcd8 {[%emt 0:01:38]} 37. Ra5 {[%emt 0:00:52]} Ne2 {[%emt 0:00:36]} 0-1

[Event "FIDE WYCC Girls U18 2023"]
[Site "Montesilvano"]
[Date "2023.11.23"]
[Round "10.1"]
[White "Hrebenshchykova, Yelyzaveta"]
[Black "Voriskova, Anna"]
[Result "1-0"]
[ECO "A57"]
[WhiteElo "2292"]
[BlackElo "2065"]
[Annotator "RC"]
[PlyCount "109"]
[EventDate "2023.11.13"]
[EventType "swiss"]
[EventCountry "ITA"]
[SourceTitle "playchess.com"]
[Source "ChessBase"]
[SourceQuality "1"]
[TimeControl "40/5400+30:1800+30"]

1. d4 {[%emt 0:00:03]} Nf6 {[%emt 0:00:10]} 2. c4 {[%emt 0:00:04]} c5 {[%emt 0:00:08]} 3. d5 {[%emt 0:05:04]} b5 {[%emt 0:00:08]} 4. cxb5 {[%emt 0:06:21]} a6 {[%emt 0:00:07]} 5. e3 {[%emt 0:00:31]} axb5 {[%emt 0:12:12]} 6. Bxb5 {[%emt 0:02:03]} Qa5+ {[%emt 0:00:07]} 7. Nc3 {[%emt 0:00:04]} Bb7 {[%emt 0:00:23]} 8. Bd2 {[%emt 0:23:41]} Qb6 {[%emt 0:00:08]} 9. Qb3 {[%emt 0:10:04]} e6 {[%emt 0:19:15]} 10. e4 {[%emt 0:05:26]} Be7 {[%emt 0:07:30]} 11. Nge2 {[%emt 0:01:57]} O-O {[%emt 0:00:49]} 12. O-O {[%emt 0:03:22]} Na6 {[%emt 0:01:39]} 13. dxe6 {[%emt 0:07:15]} fxe6 {[%emt 0:00:51]} 14. Bg5 {[%emt 0:00:04]} Qc7 {[%emt 0:13:36]} 15. Bf4 {[%emt 0:07:57]} Qc8 {[%emt 0:00:53]} 16. Rad1 {[%emt 0:05:54]} Kh8 {[%emt 0:04:02]} 17. Bxd7 {[%emt 0:03:41]} Nxd7 {[%emt 0:02:09]} 18. Qxe6 {[%emt 0:00:03]} Nf6 {[%emt 0:05:54]} 19. Qxe7 {[%emt 0:00:04]} Re8 {[%emt 0:00:53]} 20. Qf7 {[%emt 0:00:10]} Bxe4 {[%emt 0:04:22]} 21. Nxe4 {[%emt 0:02:53]} Rxe4 {[%emt 0:00:07]} 22. Be3 {[%emt 0:00:09]} Qc6 {[%emt 0:02:12]} 23. Ng3 {[%emt 0:00:25]} Rg4 {[%emt 0:01:58]} 24. Qe7 {[%emt 0:01:05]} Nd5 {[%emt 0:02:33]} 25. Qe5 {[%emt 0:01:34]} Nac7 {[%emt 0:00:58]} 26. Rc1 {[%emt 0:01:08]} Ne6 {[%emt 0:02:11]} 27. Rfd1 {[%emt 0:02:21]} Nxe3 {[%emt 0:10:08]} 28. fxe3 {[%emt 0:00:06]} Re8 {[%emt 0:02:45]} 29. Rd6 {[%emt 0:02:49]} Qc8 {[%emt 0:00:01]} 30. Qd5 {[%emt 0:05:05]} h6 {[%emt 0:01:12]} 31. Qc6 {[%emt 0:00:31]} Qxc6 {[%emt 0:01:35]} 32. Rxc6 {[%emt 0:00:02]} Kh7 {[%emt 0:01:55]} 33. b3 {[%emt 0:00:47]} Rb4 {[%emt 0:01:34]} 34. Rd1 {[%emt 0:02:12]} Rb7 {[%emt 0:02:17]} 35. Rd3 {[%emt 0:01:22]} Ra7 {[%emt 0:00:18]} 36. a4 {[%emt 0:00:05]} Rb7 {[%emt 0:00:36]} 37. Ne4 {[%emt 0:00:46]} Nf4 {[%emt 0:00:42]} 38. exf4 {[%emt 0:01:12]} Rxe4 {[%emt 0:00:02]} 39. Rxc5 {[%emt 0:00:04]} Rxf4 {[%emt 0:00:18]} 40. Rc2 {[%emt 0:00:00]} Re7 {[%emt 0:00:00]} 41. g3 {[%emt 0:03:22]} Rfe4 {[%emt 0:01:01]} 42. Ra2 {[%emt 0:05:03]} Rb4 {[%emt 0:00:50]} 43. Kf2 {[%emt 0:00:50]} Reb7 {[%emt 0:00:40]} 44. Ra3 {[%emt 0:01:41]} Rc7 {[%emt 0:00:37]} 45. Rd2 {[%emt 0:00:51]} Rc3 {[%emt 0:01:01]} 46. Rb2 {[%emt 0:00:09]} Rb8 {[%emt 0:02:50]} 47. a5 {[%emt 0:01:31]} Rf8+ {[%emt 0:00:24]} 48. Kg2 {[%emt 0:01:20]} h5 {[%emt 0:01:13]} 49. a6 {[%emt 0:02:21]} h4 {[%emt 0:00:07]} 50. a7 {[%emt 0:01:38]} Ra8 {[%emt 0:00:01]} 51. gxh4 {[%emt 0:00:51]} Kh6 {[%emt 0:00:24]} 52. Ra5 {[%emt 0:00:20]} Rc7 {[%emt 0:00:41]} 53. Rba2 {[%emt 0:01:10]} Rb7 {[%emt 0:00:11]} 54. R2a3 {[%emt 0:00:14]} Kg6 {[%emt 0:00:30]} 55. Kf3 {[%emt 0:01:20]} 1-0

[Event "FIDE WYCC Girls U18 2023"]
[Site "Montesilvano"]
[Date "2023.11.23"]
[Round "10.2"]
[White "Luong, Hoang Tu Linh"]
[Black "Wikar, Martyna"]
[Result "1/2-1/2"]
[ECO "A46"]
[WhiteElo "1887"]
[BlackElo "2228"]
[Annotator "RC"]
[PlyCount "94"]
[EventDate "2023.11.13"]
[EventType "swiss"]
[EventCountry "ITA"]
[SourceTitle "playchess.com"]
[Source "ChessBase"]
[SourceQuality "1"]
[TimeControl "40/5400+30:1800+30"]

1. d4 {[%emt 0:00:05]} Nf6 {[%emt 0:01:07]} 2. Nf3 {[%emt 0:00:15]} e6 {[%emt 0:00:46]} 3. Bf4 {[%emt 0:00:12]} c5 {[%emt 0:05:22]} 4. e3 {[%emt 0:00:29]} Nc6 {[%emt 0:00:44]} 5. c3 {[%emt 0:00:38]} d5 {[%emt 0:02:20]} 6. Bd3 {[%emt 0:00:46]} Bd6 7. Bg3 {[%emt 0:00:39]} Qc7 {[%emt 0:08:44]} 8. dxc5 {[%emt 0:02:32]} Bxg3 {[%emt 0:00:08]} 9. hxg3 {[%emt 0:00:05]} e5 {[%emt 0:05:30]} 10. Bb5 {[%emt 0:09:02]} O-O {[%emt 0:05:14]} 11. Bxc6 {[%emt 0:09:58]} bxc6 {[%emt 0:00:56]} 12. Nbd2 {[%emt 0:01:23]} Ba6 {[%emt 0:03:23]} 13. Qc2 {[%emt 0:02:32]} e4 {[%emt 0:04:38]} 14. Nd4 {[%emt 0:02:22]} Nd7 {[%emt 0:00:20]} 15. N2b3 {[%emt 0:18:34]} Bc4 {[%emt 0:06:19]} 16. Qd1 {[%emt 0:09:47]} g6 {[%emt 0:07:23]} 17. Qg4 {[%emt 0:06:37]} Ne5 {[%emt 0:07:45]} 18. Qh4 {[%emt 0:02:57]} f6 {[%emt 0:02:25]} 19. Ne6 {[%emt 0:09:10]} Qe7 {[%emt 0:00:16]} 20. Nxf8 {[%emt 0:00:26]} Rxf8 {[%emt 0:00:58]} 21. O-O-O {[%emt 0:09:07]} Rb8 {[%emt 0:10:31]} 22. Nd4 {[%emt 0:03:54]} Bxa2 {[%emt 0:03:11]} 23. Kc2 {[%emt 0:02:27]} Bc4 {[%emt 0:07:02]} 24. Ra1 {[%emt 0:02:00]} h5 {[%emt 0:00:48]} 25. b4 {[%emt 0:01:54]} Bd3+ {[%emt 0:02:24]} 26. Kd2 {[%emt 0:00:16]} Bb5 {[%emt 0:01:12]} 27. Qf4 {[%emt 0:01:13]} Rb7 {[%emt 0:02:02]} 28. Qh6 {[%emt 0:00:50]} Qe8 {[%emt 0:00:42]} 29. Qf4 {[%emt 0:01:54]} Qf7 {[%emt 0:00:10]} 30. Nxb5 {[%emt 0:01:12]} Rxb5 {[%emt 0:00:05]} 31. Ra6 {[%emt 0:00:37]} Kg7 {[%emt 0:00:35]} 32. g4 {[%emt 0:00:47]} g5 {[%emt 0:03:12]} 33. Qf5 {[%emt 0:00:12]} h4 {[%emt 0:01:33]} 34. Rha1 {[%emt 0:00:20]} Rb7 {[%emt 0:00:43]} 35. Qc8 {[%emt 0:00:31]} Re7 {[%emt 0:00:04]} 36. Kc2 {[%emt 0:00:56]} d4 {[%emt 0:02:55]} 37. exd4 {[%emt 0:00:34]} Nd3 {[%emt 0:00:04]} 38. Qb8 {[%emt 0:01:07]} e3 {[%emt 0:00:26]} 39. fxe3 {[%emt 0:00:57]} Qg6 {[%emt 0:00:27]} 40. Kb3 {[%emt 0:00:00]} Qf7+ {[%emt 0:00:00]} 41. c4 {[%emt 0:06:48]} Nxc5+ {[%emt 0:22:35]} 42. dxc5 {[%emt 0:03:03]} Rxe3+ {[%emt 0:01:15]} 43. Ka4 {[%emt 0:00:30]} Qxc4 {[%emt 0:00:06]} 44. Rxa7+ {[%emt 0:00:18]} Kg6 {[%emt 0:00:05]} 45. Qb7 {[%emt 0:01:05]} Re7 {[%emt 0:00:29]} 46. Qxe7 {[%emt 0:10:57]} Qb5+ {[%emt 0:00:07]} 47. Kb3 {[%emt 0:00:04]} Qd3+ {[%emt 0:00:06]} 1/2-1/2

[Event "FIDE WYCC Girls U18 2023"]
[Site "Montesilvano"]
[Date "2023.11.23"]
[Round "10.3"]
[White "Kurmangaliyeva, Liya"]
[Black "Petricenco, Ana"]
[Result "*"]
[ECO "B32"]
[WhiteElo "2236"]
[BlackElo "1902"]
[Annotator "RC"]
[PlyCount "53"]
[EventDate "2023.11.13"]
[EventType "swiss"]
[EventCountry "ITA"]
[SourceTitle "playchess.com"]
[Source "ChessBase"]
[SourceQuality "1"]
[TimeControl "40/5400+30:1800+30"]

1. e4 {[%emt 0:02:45]} c5 {[%emt 0:00:30]} 2. Nf3 {[%emt 0:00:16]} Nc6 {[%emt 0:00:10]} 3. d4 {[%emt 0:00:16]} cxd4 {[%emt 0:00:10]} 4. Nxd4 {[%emt 0:00:05]} Qb6 {[%emt 0:00:18]} 5. Nb3 {[%emt 0:00:07]} Nf6 {[%emt 0:00:15]} 6. Nc3 {[%emt 0:00:07]} e6 {[%emt 0:00:13]} 7. a3 {[%emt 0:00:05]} Qc7 {[%emt 0:01:07]} 8. f4 {[%emt 0:00:12]} d6 {[%emt 0:00:52]} 9. Qe2 {[%emt 0:00:04]} Be7 {[%emt 0:05:40]} 10. Be3 {[%emt 0:08:49]} a6 {[%emt 0:05:57]} 11. g4 {[%emt 0:05:21]} O-O {[%emt 0:11:28]} 12. g5 {[%emt 0:01:54]} Nd7 {[%emt 0:00:09]} 13. Rg1 {[%emt 0:08:11]} g6 {[%emt 0:09:44]} 14. f5 {[%emt 0:18:07]} Rd8 {[%emt 0:04:48]} 15. Qf2 {[%emt 0:06:38]} b6 {[%emt 0:14:45]} 16. O-O-O {[%emt 0:05:00]} Nc5 {[%emt 0:02:59]} 17. Nd4 {[%emt 0:01:48]} Bb7 {[%emt 0:12:59]} 18. fxe6 {[%emt 0:20:45]} fxe6 {[%emt 0:02:29]} 19. Nxe6 {[%emt 0:00:09]} Nxe6 {[%emt 0:00:43]} 20. Nd5 {[%emt 0:00:05]} Rf8 {[%emt 0:14:20]} 21. Nxc7 {[%emt 0:00:28]} Rxf2 {[%emt 0:00:07]} 22. Bc4 {[%emt 0:02:00]} Rf3 {[%emt 0:03:08]} 23. Bxe6+ {[%emt 0:00:56]} Kh8 {[%emt 0:00:14]} 24. Nxa8 {[%emt 0:00:24]} Rxe3 {[%emt 0:01:04]} 25. Nxb6 {[%emt 0:00:04]} Rxe4 {[%emt 0:00:14]} 26. Bc8 {[%emt 0:01:02]} Bxc8 {[%emt 0:01:29]} 27. Nxc8 {[%emt 0:00:05]} *

[Event "FIDE WYCC Girls U18 2023"]
[Site "Montesilvano"]
[Date "2023.11.23"]
[Round "10.4"]
[White "Balabayeva, Xeniya"]
[Black "Gasimova, Samra"]
[Result "1-0"]
[ECO "A45"]
[WhiteElo "2192"]
[BlackElo "1860"]
[Annotator "RC"]
[PlyCount "63"]
[EventDate "2023.11.13"]
[EventType "swiss"]
[EventCountry "ITA"]
[SourceTitle "playchess.com"]
[Source "ChessBase"]
[SourceQuality "1"]
[TimeControl "40/5400+30:1800+30"]

1. d4 {[%emt 0:00:03]} Nf6 {[%emt 0:00:11]} 2. Bf4 {[%emt 0:00:14]} d5 {[%emt 0:00:05]} 3. e3 {[%emt 0:00:05]} c5 {[%emt 0:00:05]} 4. dxc5 {[%emt 0:00:26]} e6 {[%emt 0:03:36]} 5. b4 {[%emt 0:02:12]} a5 {[%emt 0:02:36]} 6. c3 {[%emt 0:02:17]} Be7 {[%emt 0:04:35]} 7. Nd2 {[%emt 0:05:25]} O-O {[%emt 0:05:02]} 8. a3 {[%emt 0:05:34]} b6 {[%emt 0:07:41]} 9. cxb6 {[%emt 0:10:45]} Qxb6 {[%emt 0:00:29]} 10. Ngf3 {[%emt 0:00:35]} Nfd7 {[%emt 0:05:10]} 11. b5 {[%emt 0:28:28]} a4 {[%emt 0:05:18]} 12. Qc2 {[%emt 0:08:11]} f5 {[%emt 0:15:37]} 13. h4 {[%emt 0:04:53]} Bf6 {[%emt 0:03:04]} 14. g4 {[%emt 0:08:35]} e5 {[%emt 0:09:35]} 15. Bg3 {[%emt 0:03:02]} fxg4 {[%emt 0:01:31]} 16. Ng5 {[%emt 0:01:03]} e4 {[%emt 0:03:57]} 17. Qa2 {[%emt 0:02:27]} Bb7 {[%emt 0:08:59]} 18. Ngxe4 {[%emt 0:02:57]} Be5 {[%emt 0:03:05]} 19. Rg1 {[%emt 0:08:09]} Kh8 {[%emt 0:04:16]} 20. Ng5 {[%emt 0:02:05]} Qf6 {[%emt 0:01:43]} 21. Qc2 {[%emt 0:00:21]} g6 {[%emt 0:00:40]} 22. O-O-O {[%emt 0:01:12]} Bxc3 {[%emt 0:03:06]} 23. Nde4 {[%emt 0:00:36]} dxe4 {[%emt 0:00:40]} 24. Rd6 {[%emt 0:00:14]} Rc8 {[%emt 0:03:35]} 25. Rxf6 {[%emt 0:00:39]} Bxf6 {[%emt 0:00:23]} 26. Bc4 {[%emt 0:01:10]} Bd5 {[%emt 0:02:28]} 27. Bxd5 {[%emt 0:00:13]} Rxc2+ {[%emt 0:00:12]} 28. Kxc2 {[%emt 0:00:01]} Ra5 {[%emt 0:01:15]} 29. Rb1 {[%emt 0:00:56]} Na6 {[%emt 0:03:27]} 30. Nxe4 {[%emt 0:00:35]} Be5 {[%emt 0:01:13]} 31. Bxe5+ {[%emt 0:00:17]} Nxe5 {[%emt 0:00:02]} 32. bxa6 {[%emt 0:00:21]} 1-0

[Event "FIDE WYCC Girls U18 2023"]
[Site "Montesilvano"]
[Date "2023.11.23"]
[Round "10.5"]
[White "Mihelic, Vesna"]
[Black "Barwinska, Ewa"]
[Result "1-0"]
[ECO "B53"]
[WhiteElo "2102"]
[BlackElo "1974"]
[Annotator "NA RC"]
[PlyCount "87"]
[EventDate "2023.11.13"]
[EventType "swiss"]
[EventCountry "ITA"]
[SourceTitle "playchess.com"]
[Source "ChessBase"]
[SourceQuality "1"]
[TimeControl "40/5400+30:1800+30"]

1. e4 {[%emt 0:00:02]} c5 {[%emt 0:00:06]} 2. Nf3 {[%emt 0:00:06]} d6 {[%emt 0:00:05]} 3. d4 {[%emt 0:00:06]} cxd4 {[%emt 0:00:07]} 4. Qxd4 {[%emt 0:00:05]} Nc6 {[%emt 0:00:20]} 5. Bb5 {[%emt 0:00:08]} Bd7 {[%emt 0:00:14]} 6. Qd3 {[%emt 0:00:09]} Nf6 {[%emt 0:02:41]} 7. c4 {[%emt 0:00:25]} g6 {[%emt 0:03:10]} 8. Nc3 {[%emt 0:00:50]} Bg7 {[%emt 0:00:59]} 9. O-O {[%emt 0:00:22]} O-O {[%emt 0:00:23]} 10. h3 {[%emt 0:00:20]} a6 {[%emt 0:00:50]} 11. Bxc6 {[%emt 0:00:11]} Bxc6 {[%emt 0:00:11]} 12. Be3 {[%emt 0:00:37]} b5 {[%emt 0:03:22]} 13. cxb5 {[%emt 0:02:48]} Bxb5 {[%emt 0:00:34]} 14. Nxb5 {[%emt 0:00:09]} axb5 {[%emt 0:00:09]} 15. Nd4 {[%emt 0:02:21]} Qd7 {[%emt 0:15:27]} 16. Nxb5 {[%emt 0:27:02]} Nxe4 {[%emt 0:02:21]} 17. a4 {[%emt 0:03:10]} d5 {[%emt 0:04:58]} 18. Rfd1 {[%emt 0:03:58]} Rfd8 {[%emt 0:15:38]} 19. Bb6 {[%emt 0:05:39]} Rdb8 {[%emt 0:05:42]} 20. a5 {[%emt 0:10:46]} Nc5 {[%emt 0:06:17]} 21. Qe2 {[%emt 0:04:55]} Nb3 {[%emt 0:14:39]} 22. Nc7 {[%emt 0:05:44]} Nxa1 {[%emt 0:02:51]} 23. Nxa8 {[%emt 0:02:14]} Rxa8 {[%emt 0:05:17]} 24. Rxa1 {[%emt 0:00:03]} d4 {[%emt 0:00:57]} 25. Qd3 {[%emt 0:04:54]} e5 {[%emt 0:01:44]} 26. b4 {[%emt 0:06:09]} Qd5 {[%emt 0:01:35]} 27. Rc1 {[%emt 0:00:30]} e4 {[%emt 0:02:24]} 28. Qc4 {[%emt 0:03:02]} Qg5 {[%emt 0:02:03]} 29. Re1 Re8 30. Qc6 {[%emt 0:01:53]} Qe7 {[%emt 0:02:03]} 31. a6 {[%emt 0:01:10]} Bf8 {[%emt 0:04:03]} 32. Bc5 {[%emt 0:01:31]} Qd8 {[%emt 0:01:27]} 33. Bxd4 {[%emt 0:04:43]} Re6 {[%emt 0:03:16]} 34. Qc4 {[%emt 0:00:00]} Rxa6 {[%emt 0:00:39]} 35. Qxa6 {[%emt 0:04:45]} Qxd4 {[%emt 0:00:16]} 36. Qa8 {[%emt 0:01:08]} Qxb4 {[%emt 0:00:15]} 37. Rxe4 {[%emt 0:00:01]} Qb1+ 38. Kh2 {[%emt 0:02:23]} Kg7 {[%emt 0:00:42]} 39. Qd5 {[%emt 0:00:00]} Bd6+ {[%emt 0:00:00]} 40. g3 {[%emt 0:00:00]} Qf1 {[%emt 0:00:00]} 41. Qd4+ {[%emt 0:01:59]} f6 {[%emt 0:04:11]} 42. Qa7+ {[%emt 0:00:51]} Kf8 {[%emt 0:00:30]} 43. Re6 Be5 44. Re7 {[%emt 0:09:08]} 1-0

[Event "FIDE WYCC Girls U18 2023"]
[Site "Montesilvano"]
[Date "2023.11.23"]
[Round "10.6"]
[White "Nguyen Hong Nhung"]
[Black "Liu, Kelsey"]
[Result "1-0"]
[ECO "B45"]
[WhiteElo "1975"]
[BlackElo "2051"]
[Annotator "NA RC"]
[PlyCount "111"]
[EventDate "2023.11.13"]
[EventType "swiss"]
[EventCountry "ITA"]
[SourceTitle "playchess.com"]
[Source "ChessBase"]
[SourceQuality "1"]
[TimeControl "40/5400+30:1800+30"]

1. e4 {[%emt 0:00:03]} c5 {[%emt 0:03:58]} 2. Nf3 {[%emt 0:00:07]} e6 {[%emt 0:00:06]} 3. d4 {[%emt 0:00:06]} cxd4 {[%emt 0:00:04]} 4. Nxd4 {[%emt 0:00:05]} Nc6 {[%emt 0:00:02]} 5. Nc3 {[%emt 0:00:08]} Nf6 {[%emt 0:00:05]} 6. Ndb5 {[%emt 0:00:06]} Bc5 {[%emt 0:00:33]} 7. Nd6+ {[%emt 0:00:26]} Ke7 {[%emt 0:00:06]} 8. Bf4 {[%emt 0:00:06]} e5 {[%emt 0:00:05]} 9. Nf5+ {[%emt 0:00:06]} Kf8 {[%emt 0:00:04]} 10. Bg5 {[%emt 0:00:06]} d6 {[%emt 0:00:20]} 11. Bc4 {[%emt 0:04:37]} Be6 {[%emt 0:00:26]} 12. Bb3 {[%emt 0:07:19]} h6 {[%emt 0:00:34]} 13. Bxf6 {[%emt 0:08:09]} Qxf6 {[%emt 0:00:37]} 14. Ne3 {[%emt 0:09:18]} g6 {[%emt 0:06:11]} 15. O-O {[%emt 0:02:06]} Kg7 {[%emt 0:00:58]} 16. Ned5 {[%emt 0:02:26]} Qg5 {[%emt 0:06:08]} 17. Kh1 {[%emt 0:04:20]} Rad8 {[%emt 0:11:10]} 18. Qd3 {[%emt 0:05:48]} h5 {[%emt 0:03:26]} 19. Na4 {[%emt 0:03:19]} h4 {[%emt 0:08:34]} 20. h3 {[%emt 0:02:18]} Nd4 {[%emt 0:07:43]} 21. c3 {[%emt 0:03:02]} Nxb3 {[%emt 0:08:50]} 22. axb3 {[%emt 0:00:08]} a6 {[%emt 0:00:22]} 23. b4 {[%emt 0:05:28]} Ba7 {[%emt 0:01:11]} 24. b5 {[%emt 0:00:39]} axb5 {[%emt 0:01:20]} 25. Qxb5 {[%emt 0:00:10]} Qd2 {[%emt 0:09:43]} 26. Nab6 {[%emt 0:08:20]} Bxb6 {[%emt 0:05:31]} 27. Nxb6 {[%emt 0:00:36]} g5 {[%emt 0:04:25]} 28. f3 {[%emt 0:10:26]} Rh6 {[%emt 0:08:13]} 29. Rad1 {[%emt 0:02:46]} Qf4 {[%emt 0:00:20]} 30. Nd5 {[%emt 0:02:40]} Qg3 {[%emt 0:01:21]} 31. Rd2 {[%emt 0:01:51]} Rd7 {[%emt 0:05:44]} 32. Rfd1 {[%emt 0:06:54]} Rg6 {[%emt 0:04:53]} 33. Qe2 {[%emt 0:03:00]} f5 {[%emt 0:01:06]} 34. Rd3 {[%emt 0:02:01]} Bxd5 {[%emt 0:01:17]} 35. Rxd5 {[%emt 0:01:20]} g4 {[%emt 0:01:51]} 36. exf5 {[%emt 0:03:02]} gxf3 {[%emt 0:00:19]} 37. Qxf3 {[%emt 0:00:13]} Rf6 {[%emt 0:00:52]} 38. Qh5 {[%emt 0:02:54]} Qf4 {[%emt 0:00:21]} 39. Qg4+ {[%emt 0:01:08]} Kh6 {[%emt 0:00:27]} 40. Qxf4+ {[%emt 0:00:00]} exf4 {[%emt 0:00:00]} 41. Re1 {[%emt 0:02:21]} Kg5 {[%emt 0:01:36]} 42. Re8 {[%emt 0:01:30]} Rdf7 {[%emt 0:09:19]} 43. Rg8+ {[%emt 0:02:41]} Kh5 {[%emt 0:00:28]} 44. Rd8 {[%emt 0:04:10]} Rxf5 {[%emt 0:01:22]} 45. R8xd6 {[%emt 0:00:11]} Kg5 {[%emt 0:00:10]} 46. Kg1 {[%emt 0:00:29]} Rf8 {[%emt 0:04:57]} 47. Kf2 {[%emt 0:00:52]} Ra8 {[%emt 0:00:34]} 48. Rxf5+ {[%emt 0:00:37]} Kxf5 {[%emt 0:00:06]} 49. Kf3 {[%emt 0:01:43]} Ra1 {[%emt 0:00:44]} 50. Rd5+ {[%emt 0:00:27]} Ke6 {[%emt 0:00:10]} 51. Rb5 {[%emt 0:00:15]} Ra7 {[%emt 0:03:40]} 52. Kxf4 {[%emt 0:00:08]} Kd6 {[%emt 0:00:04]} 53. Kg4 {[%emt 0:00:09]} Kc6 {[%emt 0:00:05]} 54. Rb4 {[%emt 0:00:05]} b6 {[%emt 0:00:24]} 55. Kxh4 {[%emt 0:00:07]} Rh7+ {[%emt 0:00:10]} 56. Kg3 {[%emt 0:00:07]} 1-0